Cogmind - Beta 12 @@@ ROGUE MODE // 2023.09.06 @ 09:40:27 Player: haldagan Result: Destroyed by H-55 Commando with Gauss Rifle Performance ------------- Evolutions (1) 500 Regions Visited (6) 1200 Robots Destroyed (72) 360 Value Destroyed (1994) 1994 Prototype IDs (32) 640 Alien Tech Used (0) 0 Bonus (350) 350 TOTAL SCORE: 5044 Bonus ------- Follower Combat Kills 50 Aligned with FarCom 300 Cogmind --------- Core Integrity 0/400 Matter 18/300 Energy 170/170 System Corruption 0% Temperature Cool (0) Movement Walking (260) Ox2 Location -8/Mines Parts ------- > --- POWER (1) -------- Makeshift Power Source > --- PROPULSION (3) --- Carbon-fiber Leg Carbon-fiber Leg Carbon-fiber Leg > --- UTILITY (3) ------ Huge Storage Unit Signal Interpreter Light Armor Plating > --- WEAPON (2) ------- Shotgun Shotgun > --- INVENTORY (25) --- Ion Engine Light Angular Momentum Engine Carbon-fiber Leg Carbon-fiber Leg Carbon-fiber Leg Carbon-fiber Leg Carbon-fiber Leg Carbon-fiber Leg Cooling System High-capacity Storage Unit High-capacity Storage Unit Huge Storage Unit Superbattery (1500) Terrain Scan Processor 0b10 Alert Chip Propulsion Shielding Decoy Drone Bay (16/16) Heavy Laser Shotgun Improved Grenade Launcher Field Lobotomy Kit (5) Mining Laser Peak State ------------ > --- POWER ------------ Makeshift Power Source > --- PROPULSION ------- Aluminum Leg Carbon-fiber Leg Carbon-fiber Leg > --- UTILITY ---------- Huge Storage Unit Signal Interpreter Light Armor Plating > --- WEAPON ----------- Advanced Beam Rifle Field Lobotomy Kit > --- INVENTORY -------- Ion Engine Light Angular Momentum Engine Carbon-fiber Leg Carbon-fiber Leg Carbon-fiber Leg Carbon-fiber Leg Carbon-fiber Leg Carbon-fiber Leg High-capacity Storage Unit High-capacity Storage Unit Huge Storage Unit Superbattery 0b10 Alert Chip Propulsion Shielding Decoy Drone Bay Shotgun Shotgun Shotgun Improved Grenade Launcher Improved Grenade Launcher Mining Laser [Rating: 35] Favorites ----------- Power Ion Engine Engine Ion Engine Power Core Light Nuclear Core Propulsion Aluminum Leg Leg Aluminum Leg Wheel Wheel Utility Signal Interpreter Device Shield Generator Storage Huge Storage Unit Processor Signal Interpreter Protection Light Armor Plating Weapon Light Assault Rifle Energy Gun Advanced Beam Rifle Ballistic Gun Light Assault Rifle Launcher Improved Grenade Launcher Special Weapon Field Lobotomy Kit Build | -11 -10 -10 -9 -9 -9 -8 ------- Run | Jun Mat Min Mat Min Exi Min Slots Evolved 2 | . . . 2 . . . Power . | . . . . . . . Propulsion 1 | . . . 1 . . . Utility 1 | . . . 1 . . . Weapon . | . . . . . . . Parts Attached 60 | 8 8 7 27 . . 10 Power 9 | 1 2 . 6 . . . Engine 8 | 1 2 . 5 . . . Core 1 | . . . 1 . . . Reactor . | . . . . . . . Propulsion 20 | 2 2 1 12 . . 3 Treads . | . . . . . . . Leg 18 | . 2 1 12 . . 3 Wheel 2 | 2 . . . . . . Hover . | . . . . . . . Flight . | . . . . . . . Utility 11 | 1 2 2 5 . . 1 Device 1 | . . . 1 . . . Storage 4 | 1 1 1 1 . . . Processor 2 | . 1 1 . . . . Hackware . | . . . . . . . Protection 4 | . . . 3 . . 1 Artifact . | . . . . . . . Weapon 20 | 4 2 4 4 . . 6 Energy Gun 8 | 2 2 . 4 . . . Energy Cannon . | . . . . . . . Ballistic Gun 9 | 2 . 4 . . . 3 Ballistic Cannon . | . . . . . . . Launcher 2 | . . . . . . 2 Special Weapon 1 | . . . . . . 1 Impact Weapon . | . . . . . . . Slashing Weapon . | . . . . . . . Piercing Weapon . | . . . . . . . Special Melee Weapon . | . . . . . . . Unidentified Prototypes 2 | . . . 2 . . . Parts Lost 9 | . . . 7 . . 2 Power 2 | . . . 2 . . . Propulsion 2 | . . . 1 . . 1 Utility 2 | . . . 1 . . 1 Weapon 3 | . . . 3 . . . Highest Loss Streak 2 | . . . 2 . . 1 To Critical Strikes . | . . . . . . . Average Slot Usage (%) 98 | . 99 100 97 100 100 99 Engine 11 | . 14 14 10 11 11 11 Leg 29 | . 14 28 32 33 33 32 Wheel 1 | . 13 . . . . . Storage 12 | . 14 14 11 11 11 11 Processor 11 | . 12 14 11 11 11 11 Protection 5 | . . . 7 11 11 11 Energy Gun 13 | . 27 1 15 22 22 1 Ballistic Gun 10 | . . 26 5 . . 18 Naked Turns . | . . . . . . . Heaviest Build 98 | 13 34 88 98 94 94 96 Greatest Support 45 | 26 26 20 40 40 40 45 Greatest Overweight (x) 4 | 1 1 4 4 2 2 2 Average Overweight (x) 1 | . . 1 2 2 2 2 Largest Inventory Capacity 25 | 8 15 25 25 25 25 25 Average Capacity 22 | 6 14 18 25 25 25 25 Most Carried 25 | 6 15 17 25 24 25 25 Average Carried 19 | 3 12 15 21 24 24 22 Final Capacity 25 | 8 15 25 25 25 25 25 Final Carried 25 | 6 15 17 24 24 25 23 Class Distribution -------------------- 69% | Scavenger-Mutant 30% | Mutant Dominant Class ---------------- Mutant | -10/Materials Mutant | -10/Mines Scavenger-Mutant | -9/Materials Scavenger-Mutant | -9/Mines Scavenger-Mutant | -9/Exiles Mutant | -8/Mines Resources | -11 -10 -10 -9 -9 -9 -8 ----------- Run | Jun Mat Min Mat Min Exi Min Matter Collected 1183 | 217 143 160 463 . . 200 Remotely . | . . . . . . . Salvage Created 2338 | . 643 187 1195 15 . 298 Parts 156 | . 44 20 81 . . 11 Haulers Intercepted . | . . . . . . . Recyclers Shooed . | . . . . . . . Parts Field Recycled . | . . . . . . . Retrieved Matter . | . . . . . . . Parts Self-Destructed . | . . . . . . . Prevented . | . . . . . . . Kills | -11 -10 -10 -9 -9 -9 -8 ------- Run | Jun Mat Min Mat Min Exi Min Combat Hostiles Destroyed 60 | . 10 11 30 1 . 8 Guns 50 | . 7 11 30 1 . 1 AOE 8 | . 2 . . . . 6 Classes Destroyed 11 | . 6 . 2 1 . 2 Worker 2 | . 1 . 1 . . . Builder 1 | . . . . . . 1 Recycler 4 | . 2 . 1 . . 1 Operator 1 | . 1 . . . . . Watcher 5 | . 3 . 2 . . . Swarmer 20 | . 3 9 8 . . . Grunt 26 | . 7 2 11 . . 6 Duelist 1 | . . . 1 . . . Sentry 10 | . . . 10 . . . Hunter 2 | . . . . . . 2 Assembled 1 | . . . . 1 . . Best Kill Streak 7 | . 6 3 7 1 . 3 Combat Bots Only 5 | . 3 3 5 1 . 3 Max Kills in Single Turn 2 | . 2 1 1 1 . 2 Gunslinging . | . . . . . . . Exploded 1 | . 1 . . . . 1 Melee . | . . . . . . . Uniques/NPCs Destroyed . | . . . . . . . Combat | -11 -10 -10 -9 -9 -9 -8 -------- Run | Jun Mat Min Mat Min Exi Min Damage Taken 2879 | . 237 209 1523 . . 910 Core 495 | . 74 14 246 . . 161 Absorbed by Shields 152 | . . . 152 . . . Regen/Repaired (Parts) 187 | . . . 187 . . . Core Remaining (%) 82 | 100 . 64 . . . . Volleys Fired 169 | . 35 29 70 1 . 34 Largest 2 | . 2 2 2 2 . 2 Hottest 136 | . 80 44 136 136 . 136 Shots Fired 327 | . 70 58 138 2 . 59 Gun 309 | . 70 58 138 2 . 41 Cannon . | . . . . . . . Launcher 18 | . . . . . . 18 Special . | . . . . . . . Kinetic 155 | . . 58 68 . . 29 Thermal 84 | . . . 70 2 . 12 Explosive 18 | . . . . . . 18 Electromagnetic 70 | . 70 . . . . . Robot Hit Streak 15 | . 11 7 15 1 . 10 Robot Miss Streak 7 | . 3 7 6 1 . 5 Penetration Max . | . . . . . . . Secondary Targets 2 | . . . 2 . . . Max Gunslinging Chain 1 | . . . 1 . . . Shots Hit Robots 206 | . 38 33 99 1 . 35 Core Hits 110 | . 19 17 50 1 . 23 Critical Kills . | . . . . . . . Critical Parts Destroyed . | . . . . . . . Critical Strikes 8 | . . . 6 . . 2 Burn 8 | . . . 6 . . 2 Melee Attacks . | . . . . . . . Impact . | . . . . . . . Slashing . | . . . . . . . Piercing . | . . . . . . . Sneak Attacks . | . . . . . . . Combat Hostiles . | . . . . . . . Follow-up Attacks . | . . . . . . . Damage Inflicted 4048 | . 736 330 1655 20 . 1307 Guns 2950 | . 593 330 1655 20 . 352 Cannons . | . . . . . . . Explosions 1098 | . 143 . . . . 955 Melee . | . . . . . . . Ramming . | . . . . . . . Kinetic 1221 | . . 330 640 . . 251 Thermal 1279 | . 143 . 1015 20 . 101 Explosive 955 | . . . . . . 955 Electromagnetic 593 | . 593 . . . . . Impact . | . . . . . . . Slashing . | . . . . . . . Piercing . | . . . . . . . Highest Corruption . | . . . . . . . Average Corruption . | . . . . . . . Corruption Purged . | . . . . . . . Corruption Blocked . | . . . . . . . Overload Shots . | . . . . . . . Overflow Damage 18 | . . . . . . 18 Projectiles . | . . . . . . . Explosions 18 | . . . . . . 18 Melee . | . . . . . . . Knockbacks . | . . . . . . . Impact . | . . . . . . . Kinetic . | . . . . . . . Secondary . | . . . . . . . Self-Inflicted Damage 105 | . . . . . . 105 Shots 2 | . . . . . . 2 Rammed . | . . . . . . . Targets Rammed . | . . . . . . . Kicked . | . . . . . . . Crushed . | . . . . . . . Highest Temperature 516 | . 160 4 497 90 . 516 Average Temperature 114 | . 54 3 119 48 . 190 Received Heat Transfer 631 | . 99 9 343 . . 180 Effects 11 | . . . 5 . . 6 Shutdowns 2 | . . . 1 . . 1 Interference 3 | . . . . . . 3 Matter Decay 1 | . . . . . . 1 Damage (minor) 1 | . . . . . . 1 Damage (major) 4 | . . . 4 . . . Siege Activations . | . . . . . . . Robots Corrupted 1 | . 1 . . . . . Combat Hostiles 1 | . 1 . . . . . Parts Fried 1 | . 1 . . . . . Impact Corruptions . | . . . . . . . Robots Melted 1 | . . . . . . 1 Combat Hostiles 1 | . . . . . . 1 Parts Melted 7 | . . . 6 . . 1 Heat Transferred 2888 | . 150 . 2368 37 . 333 Parts Sabotaged . | . . . . . . . Parts Stolen . | . . . . . . . Parts Stripped . | . . . . . . . Power Chain Reactions 2 | . 2 . . . . . Missiles Intercepted . | . . . . . . . Alert | -11 -10 -10 -9 -9 -9 -8 ------- Run | Jun Mat Min Mat Min Exi Min Peak Influence 376 | . 262 250 376 139 . 169 Initial 139 | . . . . 139 . . Average 142 | . 100 31 228 139 . 109 Maximum Alert Level 1 | . 1 1 1 . . . Low Security (%) 62 | 100 95 99 23 100 . 100 Level 1 37 | . 4 . 76 . . . Level 2 . | . . . . . . . Level 3 . | . . . . . . . Level 4 . | . . . . . . . Level 5 . | . . . . . . . High Security . | . . . . . . . Max Security . | . . . . . . . Squads Dispatched 6 | . 1 . 4 . . 1 Investigation 2 | . . . 2 . . . Extermination . | . . . . . . . Reinforcement 4 | . 1 . 2 . . 1 Assault . | . . . . . . . Garrison . | . . . . . . . Intercept . | . . . . . . . Searches Triggered . | . . . . . . . Construction Impeded 1 | . . . . . . 1 Haulers Reinforced . | . . . . . . . Active Scanning Responses . | . . . . . . . Cargo Convoy Interrupts . | . . . . . . . Stealth | -11 -10 -10 -9 -9 -9 -8 --------- Run | Jun Mat Min Mat Min Exi Min Distress Signals 7 | . 2 . 5 . . . Communications Jammed . | . . . . . . . Distress Signals . | . . . . . . . Times Spotted 93 | . 16 18 48 1 . 10 Peak Tracking Total 5 | . 5 3 4 1 . 3 Tactical Retreats 3 | . . 2 . . . 1 Traps | -11 -10 -10 -9 -9 -9 -8 ------- Run | Jun Mat Min Mat Min Exi Min Traps Triggered 2 | . . . 2 . . . Indirectly . | . . . . . . . Trap Hack Attempts . | . . . . . . . Triggered . | . . . . . . . Disarmed . | . . . . . . . Reprogrammed . | . . . . . . . Reused . | . . . . . . . Traps Extracted . | . . . . . . . Installed . | . . . . . . . Triggered . | . . . . . . . Machines | -11 -10 -10 -9 -9 -9 -8 ---------- Run | Jun Mat Min Mat Min Exi Min Machines Disabled 4 | . 2 . 2 . . . Max in Single Turn 1 | . 1 . 1 . . . Machines Repaired . | . . . . . . . Machines Sabotaged . | . . . . . . . Overloaded Fab Kills . | . . . . . . . Hacking | -11 -10 -10 -9 -9 -9 -8 --------- Run | Jun Mat Min Mat Min Exi Min Machines Accessed 21 | . 6 2 9 . 4 . Terminals 9 | . 4 1 4 . . . Fabricators . | . . . . . . . Repair Stations 2 | . . . 2 . . . Recycling Units 4 | . 2 . 2 . . . Scanalyzers 1 | . . . 1 . . . Garrison Access . | . . . . . . . Total Hacks 68 | . 10 2 15 . 41 . Successful 61 | . 6 2 12 . 41 . Failed 7 | . 4 . 3 . . . Catastrophic . | . . . . . . . Database Lockouts . | . . . . . . . Manual 1 | . . . . . 1 . Terminals 14 | . 8 1 5 . . . Fabricators . | . . . . . . . Repair Stations 6 | . . . 6 . . . Recycling Units 4 | . 2 . 2 . . . Scanalyzers 2 | . . . 2 . . . Garrison Access . | . . . . . . . Terminal Hacks 51 | . 4 2 4 . 41 . Record 45 | . 2 1 2 . 40 . Prototype ID Bank 3 | . 1 . 2 . . . Open Door 1 | . . 1 . . . . Locate Traps 1 | . 1 . . . . . EX-Prototype ID Bank 1 | . . . . . 1 . Fabricator Hacks . | . . . . . . . Repair Station Hacks 5 | . . . 5 . . . Scan Component 3 | . . . 3 . . . Repair 2 | . . . 2 . . . Recycling Unit Hacks 4 | . 2 . 2 . . . Report Inventory 4 | . 2 . 2 . . . Scanalyzer 1 | . . . 1 . . . Insert Component 1 | . . . 1 . . . Garrison Access Hacks . | . . . . . . . Unauthorized Hacks . | . . . . . . . Terminals . | . . . . . . . Fabricators . | . . . . . . . Repair Stations . | . . . . . . . Recycling Units . | . . . . . . . Scanalyzers . | . . . . . . . Garrison Access . | . . . . . . . Data Cores Recovered . | . . . . . . . Used . | . . . . . . . Hacking Detections 7 | . 4 1 2 . . . Full Trace Events 3 | . 1 . 2 . . . Feedback Events . | . . . . . . . Feedback Blocked . | . . . . . . . Robot Schematics Acquired . | . . . . . . . Robots Built . | . . . . . . . Authchips . | . . . . . . . Time . | . . . . . . . Total Robot Build Rating . | . . . . . . . Part Schematics Acquired . | . . . . . . . Parts Built . | . . . . . . . Authchips . | . . . . . . . Time . | . . . . . . . Total Part Build Rating . | . . . . . . . Parts Repaired 2 | . . . 2 . . . Time 76 | . . . 76 . . . Parts Recycled . | . . . . . . . Recycled Matter . | . . . . . . . Retrieved Matter . | . . . . . . . Retrieved Components . | . . . . . . . Parts Scanalyzed . | . . . . . . . Part Schematics Acquired . | . . . . . . . Parts Damaged . | . . . . . . . Bothacking | -11 -10 -10 -9 -9 -9 -8 ------------ Run | Jun Mat Min Mat Min Exi Min Used RIF Installer . | . . . . . . . Robots Hacked . | . . . . . . . Non-combat . | . . . . . . . Combat . | . . . . . . . Robot Hacks Applied . | . . . . . . . Relay Couplers Released . | . . . . . . . Fabnet Peak Effective % . | . . . . . . . Robots Rewired . | . . . . . . . Allies Hacked . | . . . . . . . Hacks Repelled . | . . . . . . . Allies | -11 -10 -10 -9 -9 -9 -8 -------- Run | Jun Mat Min Mat Min Exi Min Total Allies 3 | . . 3 . . . . Largest Group 2 | . . 2 1 . . . Highest-Rated Group 49 | . . 49 31 . . . Highest-Rated Ally 31 | . . 31 31 . . . Total Orders . | . . . . . . . Ally Attacks 30 | . . 11 19 . . . Total Damage 317 | . . 193 124 . . . Kills 5 | . . 1 4 . . . Allies Corrupted . | . . . . . . . Allies Melted . | . . . . . . . Intel | -11 -10 -10 -9 -9 -9 -8 ------- Run | Jun Mat Min Mat Min Exi Min Robot Analysis Total . | . . . . . . . Derelict Logs Recovered 1 | . . 1 . . . . Drone Launches . | . . . . . . . Drone Recoveries . | . . . . . . . Exploration | -11 -10 -10 -9 -9 -9 -8 ------------- Run | Jun Mat Min Mat Min Exi Min Turns Passed 9739 | 63 1022 2399 3944 146 1540 625 Spaces Moved 3759 | 46 599 923 1351 56 590 194 Core 10 | 10 . . . . . . Treads . | . . . . . . . Legs 3395 | . 281 923 1351 56 590 194 Wheels 354 | 36 318 . . . . . Hover . | . . . . . . . Flight . | . . . . . . . Fastest Speed 50 | 50 90 190 260 260 260 260 Average Speed 234 | 91 144 240 260 260 260 260 Slowest Speed 400 | 100 190 400 400 260 260 260 Overloaded Moves . | . . . . . . . Propulsion Burnouts . | . . . . . . . Robots Hopped . | . . . . . . . Cave-ins Triggered . | . . . . . . . Exploration Rate (%) 64 | 4 98 99 97 16 94 45 Regions Visited 6 Branch Regions 4 Pre-discovered Areas 2 | . . 1 . . 1 . Known Exits Taken 4 | . . 1 1 1 1 . Unknown Exits Taken 2 | 1 1 . . . . . Scrap Searched 4 | . . 3 . . . 1 Spaces Dug . | . . . . . . . Terrain Destroyed 145 | . 8 . . . . 137 Melee . | . . . . . . . Projectile . | . . . . . . . AOE 145 | . 8 . . . . 137 Terrain Rammed . | . . . . . . . Walls Destroyed . | . . . . . . . Machines Disabled . | . . . . . . . Actions | -11 -10 -10 -9 -9 -9 -8 --------- Run | Jun Mat Min Mat Min Exi Min Total 4385 | 65 692 1063 1653 56 598 258 Wait 272 | . 27 78 155 . 4 8 Move 3753 | 45 598 922 1350 55 589 194 Hop . | . . . . . . . Pick Up 86 | 12 16 14 35 . 3 6 Fast Attach . | . . . . . . . Attach 37 | 6 5 5 16 . . 5 Detach 2 | . 2 . . . . . Swap 23 | 2 3 2 11 . . 5 Drop 43 | . 6 13 16 . 2 6 Fire 169 | . 35 29 70 1 . 34 Melee . | . . . . . . . Ram . | . . . . . . . Kick . | . . . . . . . Crush . | . . . . . . . Escape Stasis . | . . . . . . . Rewire . | . . . . . . . Trap . | . . . . . . . Miscellaneous . | . . . . . . . Route ------- -11/Junkyard -10/Materials (discovered 4 exits: *Mat x3 / *Min) -10/Mines (discovered 2 exits: *Mat x2) -9/Materials (discovered 4 exits: *Mat x3 / *Min) -9/Mines (discovered 2 exits: *Exi / *Zio) -9/Exiles (discovered 2 exits: *Min x2) -8/Mines History --------- Turn | Location | Event 9 | -11/Junkyard | Discovered new exit (range 16) 64 | -11/Junkyard | Entered Materials 312 | -10/Materials | Build established: Mutant 383 | -10/Materials | Discovered new exit (range 15) 440 | -10/Materials | Discovered new exit (range 16) 532 | -10/Materials | Discovered new exit (range 13) 782 | -10/Materials | Discovered new exit (range 16) 1086 | -10/Materials | Entered Mines 1160 | -10/Mines | Found the Drone Emporium 1175 | -10/Mines | Found Prototype Device 1357 | -10/Mines | Discovered new exit (range 16) 1667 | -10/Mines | Discovered new exit (range 10) 1686 | -10/Mines | Identified exit to Materials 1849 | -10/Mines | A weapon hastily lodged in a ceiling crevice suddenly fell to the ground 2454 | -10/Mines | Escorted by a lone wolf Derelict 2474 | -10/Mines | Learned location of Storage (-7) 2844 | -10/Mines | Build established: Scavenger-Mutant 3485 | -10/Mines | Entered Materials 3485 | -9/Materials | Accompanied by 1 ally 3485 | -9/Materials | Evolved 2 slots: Propulsion x1, Utility x1 3486 | -9/Materials | Identified exit to Mines 4219 | -9/Materials | Discovered new exit (range 3) 4221 | -9/Materials | Identified exit to Materials 4445 | -9/Materials | Discovered exit to Materials (range 16) 4793 | -9/Materials | Identified Decoy Drone Bay 6387 | -9/Materials | Repaired Carbon-fiber Leg 6562 | -9/Materials | Discovered exit to Materials (range 3) 6748 | -9/Materials | Core integrity fell below 50% 6892 | -9/Materials | Repaired Carbon-fiber Leg 7429 | -9/Materials | Entered Mines 7430 | -9/Mines | Assembled infested the area 7493 | -9/Mines | A Derelict revealed a hidden shortcut to a safe place 7523 | -9/Mines | Identified exit to Zion 7560 | -9/Mines | Deemed a non-threat by the Exiles lab entrance 7560 | -9/Mines | Discovered new exit (range 5) 7568 | -9/Mines | Identified exit to Exiles 7575 | -9/Mines | Entered Exiles 7576 | -9/Exiles | Identified exit to Mines 7614 | -9/Exiles | Discovered exit to Mines (range 15) 7672 | -9/Exiles | Met 8R-AWN 7716 | -9/Exiles | Met EX-HEX 7841 | -9/Exiles | Met EX-DEC 7883 | -9/Exiles | Visited The Gauntlet 8238 | -9/Exiles | Learned location of Zion (-7) 8530 | -9/Exiles | Met EX-BIN 8569 | -9/Exiles | Aligned with FarCom system 8571 | -9/Exiles | Given EX-Vault access code 8688 | -9/Exiles | Opened EX-Vault 8704 | -9/Exiles | Found Prototype Storage 8732 | -9/Exiles | Identified Superbattery 8741 | -9/Exiles | Found Field Lobotomy Kit 8825 | -9/Exiles | Found 0b10 Alert Chip 8881 | -9/Exiles | Warned to stay clear of 0b10 Research branches 9115 | -9/Exiles | Stole three prototypes: Superbattery, Field Lobotomy Kit, 0b10 Alert Chip 9115 | -9/Exiles | Entered Mines 9612 | -8/Mines | Core integrity fell below 20% 9662 | -8/Mines | Build established: Mutant 9740 | -8/Mines | Destroyed by H-55 Commando with Gauss Rifle Last Messages --------------- 09683_ Acquired Hvy. Laser. 09684_ U-05 Engineer builds a Wall. 09684_ Dropped Imp. Grenade Launcher. 09687_ U-05 Engineer lays Concrete. 09688_ U-05 Engineer builds a Wall. 09693_ The unstable cave ceiling collapses. 09693_ U-05 Engineer builds a Wall. 09693_ Acquired Terrain Scan Processor. 09697_ U-05 Engineer lays Concrete. 09698_ U-05 Engineer builds a Wall. 09705_ The unstable cave ceiling collapses. 09705_ U-05 Engineer lays Concrete. 09711_ U-05 Engineer builds a Wall. 09711_ Penetrated by Slug. 09713_ Acquired 21 matter. 09714_ Penetrated by Slug. 09724_ Slug penetrates Wall. 09729_ The unstable cave ceiling collapses. 09730_ U-05 Engineer builds a Wall. 09740_ Slug penetrates Wall. Map ----- +----------------------------------------------------+ | ?????????????????????????????????????????????????? | | ?????????????????????????????????????????????????? | | ?????????????????????????????????????????????????? | | ?????????????????????????????????????????????????? | | ?????????????????????????????????????????????????? | | ?????????????????????????????????????????????????? | | ?????????????????????????????????????????????????? | | ?????????????????????????????????####????????????? | | ????????????????????????????????## ##???????????? | | ????????????# ?###?????????###### ##??????????? | | ???????????## # ###??????# ##?????###?? | | ???????????# ?????# #### ##???# ##? | | ???????????# # ###### #??## #### #? | | ????????????# ####### # #???# ## #? | | ?????????????# # [ #???# ### #? | | ?????????????# # [ #???# #?## ##? | | ?????????????# # [ ####???# #??## ##?? | | ?????????????# # #??????# #???# ###??? | | ?????????????# # # #??????# #???## ##????? | | ?????????????## ## ##########?# #????# #?????? | | ??????????????# # ##### # ### #????# #?????? | | ??????????????# ## # # #????# #?????? | | ??????????????## # ## #????# #?????? | | ???????????????## #### ####?# #?????? | | ???????????????# h = # # ## #?????? | | ?????????####### #####@ ] # # #?????? | | ?????????# # * # ##????? | | ?????????# #### ##???? | | ?????????# #### #?# # # #???? | | ???????? ????## #### # """ ##??? | | ??????? ??????# ## # """ #??? | | ??????????????# ## ### # """ #??? | | ??????????????# ## ####### ##??? | | ??????????????## ## ###???? | | ???????????????## ## ##?????? | | ????????????????### #### # ### #??????? | | ??????????????????# #??# #?? ####?# #??????? | | ??????????????????# #??# #??? ?#????# #??????? | | ?????????????????? #??#!#???????????### #??????? | | ????????????????? #??# #???????????# #??????? | | ????????????????######??# #??# ??????# ###??????? | | ????????????????????????#!###?# #### ####?????? | | ????????????????????????# #?# ##????? | | ????????????????????????### #??# ##???? | | ??????????????????????????# ##?######## """ #???? | | ????????????????????????### ##???????# """ #???? | | ??????????????????????### ##???#### """ ##??? | | ?????????????????????## ###?# ##?? | | ?????????????????????# ### #?? | | ?????????????????????# ## #### #?? | +----------------------------------------------------+ Best States ------------- Heat Dissipation 28 Energy Generation 15 Energy Capacity 280 Matter Stores 300 Matter Capacity 300 Sight Range 16 Terrain Scan Density 10 Armor Coverage 150 Evasion (%) 42 Targeting Accuracy 5 Item Schematics ----------------- None Robot Schematics ------------------ None Fabricated ------------ Nothing Alien Tech Used ----------------- None Achievements -------------- None Challenges ------------ None Game ------ Seed DamperPhaseProjector Manual? 0 Play Time 01:07:55 Cumulative 19.1 hours Start 2023.09.05 @ 19:04:21 End 2023.09.06 @ 09:40:27 Sessions 3 Manual Loads 0 Difficulty Rogue Special Mode None Game No. 20 Rogue 20 Adventurer 0 Explorer 0 Win Type - Total 0 Types 0/0/0/0/0/0/0/0/0 Lore% 18 Gallery% 21 Achievement% 19 Wizard Run 0 Options --------- ASCII 0 Keyboard 0 Movement Numpad Keybinds 0 Fullscreen 1 Font 16/SmallcapsGlow Map View 50x54 Tactical HUD 1 Map Filters NONE Filters NONE Steam 1 RUN: a82d3938-c5c6-422a-8cd9-954e3f982042